bitfinex-derivatives/quotes_ETHF0:USTF0_20260102
["timestamp","ask_amount","ask_price","bid_price","bid_amount"]
[1767349685485,0.16372,3057.5,3056.1,3.36205126]
[1767349685688,0.00490846,3057.1,3056.1,3.36205126]
[1767349686383,0.00725216,3057.1,3056.1,3.36205126]
[1767349686589,0.16368,3058.2,3056.3,3.36205126]
[1767349686785,0.16368,3058.2,3056.5,3.36205126]
[1767349686990,0.74885093,3058.1,3056.5,3.36205126]
[1767349687585,0.00490846,3057.6,3056.6,4.687]
[1767349689589,0.00490846,3057.6,3056.5,3.36205126]
[1767349690192,0.00490846,3057.6,3056.4,4.688]
[1767349691088,0.00490846,3057.6,3056.3,4.688]
[1767349694795,0.00490846,3057.6,3056.4,3.36205126]
[1767349694998,0.00490846,3057.6,3056.5,3.36205126]
[1767349698901,0.00311359,3058.1,3056.7,3.36205126]
[1767349699903,0.00490846,3057.7,3056.7,3.36205126]
[1767349701601,0.00490846,3057.7,3057.6,8.23774178]
[1767349701802,0.00490846,3057.7,3057.3,0.00490846]
[1767349702804,0.00490846,3057.7,3057.3,0.00795018]
[1767349705804,0.00490846,3057.7,3057.3,3.52297503]
[1767349706205,0.00490846,3057.7,3057.3,0.00795018]
[1767349707006,0.00490846,3057.7,3056.3,4.688]
[1767349707307,0.00490846,3057.7,3057.1,3.52406527]
[1767349708209,0.00490846,3057.7,3057.1,3.53314209]
[1767349714508,0.00490846,3057.7,3057.3,3.52406527]
[1767349714712,0.00490846,3057.7,3056.6,3.35234509]
[1767349715711,0.00490846,3057.7,3056.6,0.00340861]
[1767349715911,0.00490846,3057.7,3056.8,0.00490846]
[1767349716111,0.00490846,3057.7,3056.6,4.70231707]
[1767349716511,3.52368227,3057.7,3056.6,4.70231707]
[1767349717112,6.20968227,3057.7,3056.8,0.00490846]
[1767349718215,6.37339227,3057.7,3056.8,0.00490846]
[1767349718612,3.68249381,3057.6,3056.6,0.00341864]
[1767349719610,3.68249381,3057.6,3056.8,0.00490846]
[1767349720317,3.51877381,3057.4,3055.5,3.51616509]
[1767349720618,0.74885093,3057.1,3055.5,12.49931429]
[1767349720817,0.74885093,3057.1,3056.0,4.70231707]
[1767349721314,0.74885093,3057.1,3056.0,4.70462887]
[1767349723918,0.16374,3057.2,3056.0,4.70462887]
[1767349724118,0.16374,3057.2,3056.2,4.70231707]
[1767349724311,3.68249381,3057.6,3056.2,8.05466216]
[1767349726620,0.74836628,3057.3,3056.2,8.05466216]
[1767349727516,0.16372,3057.6,3056.5,4.70231707]
[1767349728813,0.74836628,3057.4,3056.5,4.70231707]
[1767349729112,0.74836628,3057.0,3056.5,4.70231707]
[1767349731422,0.74836628,3057.0,3056.0,8.06165689]
[1767349731724,0.74836628,3057.0,3056.0,3.35465689]
[1767349732115,0.74836628,3057.3,3056.0,3.35465689]
[1767349733920,0.74836628,3056.4,3056.0,0.0023118]
[1767349734126,0.74836628,3056.4,3055.5,8.06034509]
[1767349734425,0.74836628,3056.7,3055.5,8.06034509]
[1767349734825,3.51877381,3057.0,3055.2,0.43949901]
[1767349734826,0.74836628,3056.1,3055.2,0.43949901]
[1767349735124,3.68252381,3056.9,3055.2,0.43949901]
[1767349735125,0.00490846,3056.0,3055.2,3.7947529]
[1767349735922,0.16375,3056.9,3055.2,4.54311918]
[1767349736117,0.16375,3056.9,3055.6,3.55819271]
[1767349736912,0.16375,3056.9,3055.9,0.00490846]
[1767349737119,0.00490846,3056.6,3055.9,0.00490846]
[1767349739627,3.66332494,3056.6,3055.9,0.00490846]
[1767349739831,3.66332494,3056.6,3055.2,3.61805019]
[1767349741230,3.66332494,3056.6,3055.2,0.05985748]
[1767349741629,3.66332494,3056.6,3055.2,3.61805019]
[1767349741925,0.00490846,3056.6,3055.2,3.61805019]
[1767349746839,0.00490846,3056.6,3055.2,3.56110151]
[1767349755327,0.00490846,3056.6,3055.4,3.55819271]
[1767349755833,0.16374,3057.2,3055.6,3.55819271]
[1767349756634,0.00490846,3056.7,3056.1,0.00490846]
[1767349757133,0.16374,3057.2,3056.1,3.56310117]
[1767349757331,3.65841648,3057.7,3056.1,3.56310117]
[1767349757925,0.00490846,3057.2,3056.1,3.56310117]
[1767349760429,0.00490846,3057.2,3056.2,0.74822876]
[1767349760634,0.00490846,3057.2,3056.3,3.55819271]
[1767349766740,0.00490846,3057.2,3056.1,0.00490846]
[1767349766942,0.00490846,3057.2,3056.1,4.72390846]
[1767349767137,0.00490846,3057.2,3056.1,8.12193831]
[1767349767934,0.00490846,3057.2,3056.2,3.39802985]
[1767349769442,0.00490846,3057.2,3056.2,4.723]
[1767349769942,0.00490846,3057.2,3056.2,8.12102985]
[1767349770243,0.00490846,3057.2,3056.3,3.39802985]
[1767349775244,0.00490846,3057.2,3056.4,4.732]
[1767349775944,0.00490846,3057.2,3056.4,4.733]
[1767349776442,0.00490846,3057.2,3056.3,3.39802985]
[1767349776642,0.00490846,3057.2,3056.4,4.734]
[1767349780140,2.686,3057.5,3056.5,3.39802985]
[1767349780643,3.43422876,3057.5,3056.5,3.39802985]
[1767349781141,0.00490846,3057.3,3056.4,4.734]
[1767349781345,0.00490846,3057.3,3056.1,0.00490846]
[1767349781346,0.74822876,3056.7,3056.1,0.00490846]
[1767349781745,0.74822876,3057.0,3056.1,0.00490846]
[1767349783045,0.74822876,3056.6,3056.1,0.00490846]
[1767349783647,4.25130643,3056.6,3056.1,0.00490846]
[1767349783840,4.25130643,3056.6,3055.5,4.739]
[1767349784141,3.50307767,3056.6,3055.2,3.50679523]
[1767349784348,0.74822876,3056.5,3055.3,4.739]
[1767349784849,0.74822876,3056.5,3055.6,0.00490846]
[1767349785253,0.74822876,3056.2,3055.6,0.00490846]
[1767349785446,0.74822876,3056.2,3055.3,4.739]
[1767349786250,0.74822876,3056.2,3055.2,3.50679523]
[1767349786451,0.74822876,3056.2,3055.4,0.00490846]
[1767349787652,0.74822876,3055.9,3055.4,0.00490846]
[1767349787951,0.75181656,3055.9,3055.4,0.00490846]
[1767349788342,0.75181656,3055.9,3055.2,0.0029088]
[1767349788550,0.0035878,3055.9,3055.2,0.0029088]
[1767349792444,0.74901732,3055.7,3054.4,3.57294948]
[1767349792646,0.00490846,3055.4,3054.4,3.57294948]
[1767349793558,0.00490846,3055.4,3054.4,3.57532217]
[1767349800566,0.00490846,3055.4,3054.4,0.00237269]
[1767349800954,0.00490846,3055.4,3054.4,3.51546631]
[1767349801358,0.0035878,3055.9,3054.6,3.51309362]
[1767349801752,0.0035878,3055.9,3054.8,3.51309362]
[1767349802460,0.00490846,3055.7,3055.0,0.00490846]
[1767349803467,0.0035878,3055.9,3055.0,3.51800208]
[1767349804661,0.00490846,3055.8,3055.0,3.51800208]
[1767349805459,2.686,3056.9,3055.2,3.51309362]
[1767349806371,0.00490846,3056.4,3055.2,3.51309362]
[1767349809366,2.68951865,3056.9,3055.6,3.51309362]
[1767349809572,0.16372,3057.6,3055.8,3.51309362]
[1767349810066,0.16372,3057.6,3056.0,3.51309362]
[1767349810569,0.00490846,3057.1,3056.0,3.51309362]
[1767349811370,0.00490846,3057.1,3055.7,4.91981]
[1767349811371,0.00490846,3057.1,3056.2,3.51309362]
[1767349811574,0.0026021,3057.6,3056.4,3.51309362]
[1767349812565,0.0026021,3057.6,3056.7,0.00490846]
[1767349812768,0.16369,3058.0,3056.7,0.00490846]
[1767349812769,0.16369,3058.0,3056.7,3.52216826]
[1767349813773,0.00324502,3057.7,3056.7,3.52216826]
[1767349814071,0.00359879,3058.0,3056.9,3.51309362]
[1767349814372,0.00359879,3058.0,3057.0,4.759]
[1767349817077,0.00359879,3058.0,3057.0,8.27209362]
[1767349817273,3.72398147,3059.1,3057.1,3.51309362]
[1767349817479,3.72399147,3058.9,3057.2,3.51309362]
[1767349817776,3.72399147,3058.9,3057.7,0.00490846]
[1767349818479,3.72764431,3058.9,3057.7,0.00490846]
[1767349818777,0.00365284,3058.9,3057.9,3.51309362]
[1767349819679,0.00365284,3058.9,3057.9,8.27609362]
[1767349820378,0.00365284,3058.9,3057.7,0.00490846]
[1767349820379,3.56399431,3058.9,3057.7,0.00490846]
[1767349820771,3.56034147,3058.6,3057.0,4.764]
[1767349821578,0.16367,3058.5,3057.0,4.764]
[1767349821775,0.00490846,3058.1,3057.4,0.00490846]
[1767349832291,0.16859846,3058.1,3057.4,0.00490846]
[1767349832487,0.9168137,3058.1,3056.7,0.00416618]
[1767349833494,0.9168137,3058.1,3057.1,0.00490846]
[1767349835595,4.16910172,3057.7,3056.1,0.16379]
[1767349835800,4.16910172,3057.7,3056.2,4.76]
[1767349836005,4.16910172,3057.7,3056.2,9.03224883]
[1767349836603,3.42088648,3057.7,3056.6,0.00490846]
[1767349838095,3.42088648,3057.7,3055.6,3.57494513]
[1767349838096,3.58459648,3057.7,3055.6,3.57494513]
[1767349838295,3.58459648,3057.7,3056.3,0.17197995]
[1767349839201,3.58459648,3057.7,3056.7,0.00490846]
[1767349840704,3.58459648,3057.7,3057.1,0.17197995]
[1767349843599,0.16371,3057.7,3057.1,0.17197995]
[1767349844703,3.58459648,3057.7,3057.5,0.17197995]
[1767349845411,3.58459648,3057.7,3056.7,0.00490846]
[1767349853617,3.42088648,3057.5,3056.7,0.00490846]
[1767349867235,3.60486399,3058.0,3056.7,0.00490846]
[1767349867417,3.60486399,3058.0,3056.8,0.74821719]
[1767349867723,0.00490846,3058.1,3057.4,0.74821719]
[1767349869227,0.00490846,3058.1,3057.1,0.74821719]
[1767349871922,3.60486399,3058.8,3057.7,0.74821719]
[1767349872226,3.60486399,3058.8,3057.4,0.74821719]
[1767349873125,3.60977245,3058.4,3057.4,0.74821719]
[1767349873927,3.60977245,3058.4,3057.1,0.74821719]
[1767349874330,3.60977245,3058.4,3057.1,4.93083532]
[1767349876222,0.00490846,3058.4,3057.4,0.74821719]
[1767349876423,3.60977245,3058.4,3057.4,0.74821719]
[1767349876625,3.60977245,3058.4,3057.2,4.753]
[1767349876822,3.60977245,3058.4,3057.2,5.50121719]
[1767349881426,3.60977245,3058.4,3057.3,4.3430388]
[1767349882130,3.60977245,3058.4,3057.2,0.74821719]
[1767349882131,3.60977245,3058.4,3057.4,4.759]
[1767349892434,3.60977245,3058.4,3057.0,0.16375]
[1767349892636,3.56205459,3058.1,3056.7,0.00490846]
[1767349892832,3.56205459,3058.1,3057.1,4.771]
[1767349895040,3.56205459,3058.1,3056.7,0.00490846]
[1767349895339,3.56205459,3058.1,3056.8,9.0525994]
[1767349895538,3.56205459,3057.8,3056.8,4.2795994]
[1767349895738,3.56205459,3057.8,3056.7,0.00490846]
[1767349895739,4.31027178,3057.6,3056.7,0.00490846]
[1767349896132,3.56205459,3057.6,3056.7,0.00490846]
[1767349898638,4.31027178,3057.6,3056.7,0.00490846]
[1767349900038,3.56205459,3057.6,3056.7,0.00490846]
[1767349900845,3.56205459,3058.3,3056.9,0.74821719]
[1767349901039,3.56205459,3058.3,3057.2,0.74821719]
[1767349901244,3.56205459,3058.3,3056.9,0.74821719]
[1767349901944,4.31027178,3058.1,3056.7,0.00490846]
[1767349902145,4.31027178,3058.1,3056.8,4.777]
[1767349902336,4.31027178,3058.1,3056.9,4.776]
[1767349902736,4.31027178,3058.1,3056.7,0.00490846]
[1767349902953,4.31027178,3058.1,3056.8,4.777]
[1767349904350,4.31027178,3057.8,3056.7,4.78190846]
[1767349905252,3.56205459,3057.8,3056.7,4.78190846]
[1767349905751,3.56205459,3057.8,3056.9,0.74821719]
[1767349905943,3.56205459,3057.8,3056.7,4.78190846]
[1767349906145,3.56205459,3057.8,3056.8,0.74821719]
[1767349906450,3.56205459,3057.8,3056.8,5.52821719]
[1767349907454,3.56205459,3057.8,3056.8,4.78]
[1767349909256,0.74821719,3058.1,3056.8,4.78]
[1767349909647,4.31027178,3058.1,3056.8,4.78]
[1767349909850,3.56205459,3058.1,3056.9,0.74821719]
[1767349910161,3.56205459,3058.1,3056.8,5.52821719]
[1767349910453,3.56205459,3058.1,3056.8,4.78]
[1767349913465,3.56205459,3058.1,3056.9,4.789]
[1767349916472,3.56205459,3058.1,3056.8,4.792]
[1767349918173,3.56205459,3058.1,3056.9,4.792]
[1767349920469,3.56205459,3058.1,3056.9,4.793]
[1767349920973,3.56205459,3058.1,3056.7,0.00490846]
[1767349921672,0.1637,3058.0,3056.7,0.00490846]
[1767349921876,3.68231944,3058.0,3056.7,0.00490846]
[1767349922577,3.51861944,3058.0,3056.7,0.00490846]
[1767349923473,3.51861944,3058.0,3056.7,4.79690846]
[1767349931985,3.68231944,3058.0,3056.7,4.79690846]
[1767349932185,3.68231944,3058.0,3056.7,0.00490846]
[1767349932389,3.68231944,3058.0,3056.7,4.79690846]
[1767349934888,3.51861944,3058.0,3056.7,4.79690846]
[1767349935095,3.5235279,3058.4,3056.7,4.96066846]
[1767349936977,3.51861944,3058.1,3056.7,0.00490846]
[1767349937182,3.51861944,3058.1,3056.8,4.798]
[1767349939390,3.51861944,3058.1,3056.8,4.799]
[1767349942793,3.51861944,3058.0,3056.8,4.799]
[1767349942979,3.51861944,3058.0,3056.7,0.00490846]
[1767349943186,3.51861944,3058.0,3056.7,4.80790846]
[1767349943787,3.68230944,3058.0,3056.7,4.80790846]
[1767349944284,3.51861944,3057.8,3056.7,4.80790846]
[1767349945689,3.51861944,3057.8,3056.7,0.00490846]
[1767349948992,3.68232944,3057.8,3056.7,0.00490846]
[1767349953091,3.64784097,3057.6,3056.7,0.00490846]
[1767349953587,3.64784097,3057.4,3056.3,0.00383948]
[1767349954695,3.64784097,3057.4,3056.5,0.00490846]
[1767349959002,0.327,3057.5,3056.5,0.00490846]
[1767349961997,3.65274943,3058.4,3056.7,0.74794444]
[1767349962504,3.65274943,3058.4,3056.8,4.29833535]
[1767349963605,3.65274943,3058.4,3056.8,4.46209535]
[1767349964105,3.65274943,3058.4,3057.1,0.74794444]
[1767349965201,0.00490846,3058.4,3057.2,7.61948142]
[1767349965407,0.00490846,3058.4,3057.4,0.16372]
[1767349965799,0.00490846,3058.4,3057.4,4.805]
[1767349965999,0.00490846,3058.4,3057.1,0.74794444]
[1767349966406,0.00490846,3058.4,3056.9,4.805]
[1767349966407,3.65274943,3058.4,3056.9,4.805]
[1767349966817,3.65274943,3058.4,3056.9,9.00036629]
[1767349967607,3.65274943,3058.4,3057.0,4.806]
[1767349968710,3.65274943,3058.4,3056.9,4.807]
[1767349969012,3.65274943,3058.4,3056.9,9.08465772]
[1767349972614,3.65274943,3058.4,3057.3,0.74773479]
[1767349983828,3.65274943,3058.4,3057.6,0.74773479]
[1767349987428,3.65274943,3058.4,3057.5,0.74773479]
[1767349990028,0.00365284,3058.9,3058.2,0.74773479]
[1767349990227,6.393,3059.8,3058.5,0.74773479]
[1767349990530,0.98648418,3059.7,3058.5,0.74773479]
[1767349990723,4.765,3059.8,3058.2,0.74773479]
[1767349990923,0.00490846,3059.3,3058.7,0.00490846]
[1767349991525,0.00793081,3059.3,3058.7,0.00824869]
[1767349991721,0.16361,3059.6,3058.7,0.75598348]
[1767349992233,3.78546817,3059.6,3058.7,0.75598348]
[1767349992729,0.00490846,3059.5,3058.7,0.75598348]
[1767349994530,0.00490846,3059.5,3058.7,0.00824869]
[1767349996230,0.16366,3058.7,3056.1,0.16379]
[1767349996431,0.74773479,3058.4,3056.7,0.74773479]
[1767349996629,0.74773479,3058.4,3057.0,0.74773479]
[1767349996630,4.36959296,3058.4,3057.0,0.74773479]
[1767349996826,3.62185817,3058.4,3057.0,0.74773479]
[1767349997324,0.00490846,3058.0,3057.4,0.00490846]
[1767349999330,0.00490846,3058.0,3057.0,0.00383108]
[1767350000434,0.00490846,3058.0,3057.2,0.00490846]
[1767350003438,0.74773479,3057.8,3057.0,0.00383108]
[1767350003634,0.74773479,3057.5,3057.0,0.00383108]
[1767350003841,0.74773479,3056.9,3055.8,3.32059418]
[1767350004043,0.74773479,3057.2,3055.8,3.32059418]
[1767350004332,0.74773479,3057.2,3055.9,4.34442205]
[1767350004527,0.74773479,3057.2,3056.2,0.00490846]
[1767350004729,0.74773479,3057.2,3056.2,0.00851184]
[1767350004930,0.75186125,3057.2,3056.2,0.00851184]
[1767350007140,0.74773479,3056.6,3055.4,11.78809242]
[1767350007533,0.74773479,3056.6,3055.5,4.17781996]
[1767350007729,0.74773479,3056.6,3055.4,3.54526242]
[1767350007940,4.38871499,3056.9,3055.4,4.29299721]
[1767350008139,0.00490846,3056.5,3055.8,0.00327228]
[1767350016948,0.00412646,3057.2,3055.9,4.29299721]
[1767350017936,0.00412646,3057.2,3055.9,3.54526242]
[1767350017937,0.75186125,3057.2,3055.9,3.54526242]
[1767350018144,0.00490846,3056.9,3055.9,3.54526242]
[1767350023457,0.00490846,3056.9,3055.8,0.75100707]
[1767350023653,0.00490846,3056.9,3055.8,3.5485347]
[1767350024055,0.3271,3056.8,3055.8,3.5485347]
[1767350026956,0.3271,3056.8,3056.0,4.29299721]
[1767350029458,0.00490846,3056.9,3056.0,4.29299721]
[1767350029760,0.00412646,3057.2,3056.3,4.29299721]
[1767350030854,0.00490846,3057.1,3056.3,4.29299721]
[1767350032553,0.00490846,3057.1,3056.3,3.54526242]
[1767350038066,0.00490846,3057.1,3055.9,3.66824216]
[1767350038260,3.42634365,3057.1,3056.0,8.1792]
[1767350038564,3.42634365,3057.1,3055.9,4.819]
[1767350038865,0.3271,3057.0,3055.9,4.819]
[1767350039563,0.3271,3057.0,3056.1,8.1792]
[1767350041859,0.3271,3057.0,3056.2,4.826]
[1767350042062,0.3271,3057.0,3056.3,4.827]
[1767350044571,0.3271,3057.0,3056.3,13.0062]
[1767350045874,0.3271,3057.0,3056.3,8.1792]
[1767350046169,0.3271,3057.0,3056.3,13.0222]
[1767350048275,0.3271,3057.0,3056.3,8.1792]
[1767350048476,0.3271,3057.0,3056.1,4.852]
[1767350048775,3.74853519,3057.0,3056.0,4.855]
[1767350049968,3.74853519,3057.0,3055.8,0.00327228]
[1767350050174,3.74853519,3057.0,3055.9,4.855]
[1767350050777,3.74853519,3057.0,3055.8,4.85827228]
[1767350050979,3.74853519,3057.0,3055.8,0.00327228]
[1767350052480,3.91228519,3057.0,3055.8,0.00327228]
[1767350052978,3.58518519,3057.0,3055.8,0.00327228]
[1767350055979,0.3271,3056.9,3055.8,0.00327228]
[1767350056285,3.42143519,3056.8,3055.8,0.00327228]
[1767350056684,3.42143519,3056.8,3055.8,8.18247228]
[1767350057380,3.42143519,3056.7,3055.8,0.00327228]
[1767350057581,3.42143519,3056.7,3055.4,0.00238645]
[1767350057772,3.42143519,3056.4,3055.4,0.00238645]
[1767350057978,3.42143519,3056.3,3054.8,4.91094877]
[1767350058176,3.42143519,3056.3,3055.1,8.1792]
[1767350058877,3.42143519,3056.3,3055.4,0.00490846]
[1767350059683,0.16378,3056.4,3055.6,8.1792]
[1767350059981,3.42143519,3056.7,3055.7,8.1792]
[1767350061686,0.3271,3056.9,3055.7,8.1792]
[1767350062188,3.74853519,3056.9,3055.7,8.1792]
[1767350062385,3.91228519,3056.9,3055.7,8.1792]
[1767350062786,3.42143519,3056.7,3055.4,0.00490846]
[1767350062986,3.42143519,3056.7,3055.5,8.1792]
[1767350066788,3.58519519,3056.7,3055.5,8.1792]
[1767350068687,0.16377,3056.6,3055.5,8.1792]
[1767350068988,3.71695239,3056.5,3055.4,0.00490846]
[1767350069389,0.16378,3056.3,3055.4,0.00490846]
[1767350069587,4.30133129,3056.4,3055.1,0.00421649]
[1767350070191,0.1638,3056.1,3055.1,0.00421649]
[1767350070785,0.1638,3056.0,3055.3,0.00490846]
[1767350074793,0.1638,3056.0,3055.1,0.00421649]
[1767350076295,3.71697239,3056.0,3055.1,0.00421649]
[1767350076486,3.71697239,3056.0,3054.5,4.879]
[1767350076688,0.00490846,3055.6,3054.5,4.879]
[1767350077087,0.00490846,3055.6,3054.4,3.41816151]
[1767350077595,0.00490846,3055.6,3054.4,3.42222841]
[1767350082301,0.16384,3055.3,3054.4,0.0040669]
[1767350083288,3.275,3056.1,3054.4,0.0040669]
[1767350083289,4.782,3056.3,3054.4,3.42222841]
[1767350083596,3.55317239,3056.5,3054.6,3.41816151]
[1767350083795,0.16378,3056.3,3054.6,3.41816151]
[1767350083996,0.16378,3056.3,3054.8,3.41816151]
[1767350084400,0.00490846,3055.9,3055.2,0.00490846]
[1767350085197,0.50082692,3055.9,3055.2,0.00490846]
[1767350085897,0.00490846,3055.9,3055.2,0.00490846]
[1767350086099,0.50082692,3055.9,3055.2,0.00490846]
[1767350086298,0.00490846,3055.9,3055.2,0.00490846]
[1767350086501,0.50082692,3055.9,3055.2,0.00490846]
[1767350086795,0.00490846,3055.9,3055.2,0.00490846]
[1767350087003,0.50082692,3055.9,3055.2,0.00490846]
[1767350088201,0.00490846,3055.9,3055.2,0.00490846]
[1767350088400,0.50082692,3055.9,3055.2,0.00490846]
[1767350088592,0.00490846,3055.9,3055.2,0.00490846]
[1767350088793,0.50082692,3055.9,3055.2,0.00490846]
[1767350089290,0.00490846,3055.9,3055.2,0.00490846]
[1767350095601,0.16378,3056.3,3055.3,3.41816151]
[1767350096710,0.00490846,3056.1,3055.3,3.41816151]
[1767350098304,0.16376,3056.9,3055.3,3.41816151]
[1767350098610,0.74901022,3056.9,3055.5,3.62361101]
[1767350099395,0.00490846,3056.5,3055.5,3.62361101]
[1767350100702,0.00490846,3056.5,3056.1,3.62361101]
[1767350100909,4.777,3056.9,3056.1,3.62361101]
[1767350101308,4.777,3056.9,3055.7,0.74901022]
[1767350101309,4.777,3056.9,3055.7,4.37262123]
[1767350101806,0.00490846,3056.6,3055.7,4.37262123]
[1767350102311,0.00412646,3057.2,3056.3,4.37262123]
[1767350102513,3.275,3057.7,3056.6,0.74901022]
[1767350103015,4.94171,3057.8,3056.6,0.74901022]
[1767350103214,0.00490846,3057.5,3056.9,0.00490846]
[1767350103710,0.00764845,3057.5,3056.9,0.00725591]
[1767350106511,0.74901022,3057.3,3056.3,3.62361101]
[1767350106707,0.74901022,3057.3,3055.9,3.78742101]
[1767350106911,0.74901022,3057.3,3055.4,3.62361101]
[1767350106912,0.74901022,3057.0,3055.4,3.62361101]
[1767350107213,0.74901022,3056.7,3055.5,4.18429342]
[1767350107612,0.74901022,3056.7,3055.8,0.00490846]
[1767350108610,0.16374,3057.3,3056.0,3.62361101]
[1767350109413,0.00764845,3057.5,3056.0,3.62361101]
[1767350111215,0.00764845,3057.5,3056.0,3.78741101]
[1767350111421,0.00764845,3057.5,3056.2,3.62361101]
[1767350111718,0.00764845,3057.5,3056.4,3.62361101]
[1767350114425,0.16368,3058.3,3056.6,3.62361101]
[1767350115115,0.16369,3058.0,3056.6,3.62361101]
[1767350115319,0.00490846,3057.8,3056.6,3.62361101]
[1767350115520,0.00490846,3057.8,3056.0,3.62361101]
[1767350115918,0.00490846,3057.8,3056.1,3.62361101]
[1767350116518,3.57422451,3057.8,3056.1,3.62361101]
[1767350117522,0.00490846,3057.8,3056.3,3.62361101]
[1767350121526,4.777,3058.2,3056.3,3.62361101]
[1767350121527,0.00346145,3058.3,3056.7,3.62361101]
[1767350121923,0.00346145,3058.3,3056.9,3.62361101]
[1767350122628,0.00327228,3057.9,3056.9,3.62361101]
[1767350128728,0.00346145,3058.3,3056.9,3.62361101]
[1767350129234,0.00346145,3058.3,3055.9,7.35834486]
[1767350129235,3.4185826,3058.1,3056.4,3.43461286]
[1767350129636,3.5822726,3058.1,3056.4,3.43461286]
[1767350130331,0.00346145,3058.3,3056.4,3.59839286]
[1767350130636,0.00346145,3058.3,3056.6,3.43461286]
[1767350131241,0.16368,3058.2,3056.6,3.43461286]
[1767350132433,0.91167462,3058.2,3056.7,0.74799462]
[1767350132641,0.91167462,3058.2,3056.8,3.43461286]
[1767350133234,0.74799462,3058.2,3056.8,3.43461286]
[1767350133435,0.00346145,3058.3,3057.4,4.18260748]
[1767350133738,0.00346145,3058.3,3057.5,0.00490846]
[1767350133939,0.00346145,3058.3,3057.5,3.43952132]
[1767350135935,0.00346145,3058.3,3057.5,0.00490846]
[1767350138239,0.91162462,3059.2,3057.8,3.43461286]
[1767350138440,0.74799462,3058.9,3057.8,3.43461286]
[1767350138941,0.91162462,3059.2,3057.8,3.43461286]
[1767350139141,0.91398437,3059.2,3057.8,3.4380906]
[1767350140546,0.16598975,3059.2,3057.8,3.4380906]
[1767350144745,3.5822226,3059.1,3057.8,0.00347774]
[1767350145339,0.16364,3059.0,3057.8,0.00347774]
[1767350145745,0.16365,3058.9,3057.8,0.00347774]
[1767350146347,0.00235975,3059.2,3057.8,0.00347774]
[1767350146348,3.5822326,3058.8,3057.8,0.00347774]
[1767350147943,0.16367,3058.6,3057.5,0.00490846]
[1767350148140,4.771,3058.5,3057.5,0.00490846]
[1767350148648,0.16367,3058.4,3057.5,0.00490846]
[1767350148849,0.16367,3058.4,3057.5,0.00805819]
[1767350149348,1.14378359,3058.9,3057.5,3.44267105]
[1767350149551,4.772,3058.8,3057.5,3.44267105]
[1767350151851,4.775,3058.7,3057.5,3.44267105]
[1767350159344,4.783,3058.6,3057.5,3.44267105]
[1767350160660,0.00235975,3059.2,3057.7,3.44471969]
[1767350160951,4.784,3059.1,3057.7,3.60842969]
[1767350161155,0.00235975,3059.2,3057.7,3.60842969]
[1767350161350,4.228,3059.1,3057.7,3.60842969]
[1767350161554,0.00235975,3059.2,3057.7,3.60842969]
[1767350161751,4.78635975,3059.2,3057.7,3.60842969]
[1767350162962,0.00235975,3059.2,3057.7,3.60842969]
[1767350163154,0.00235975,3059.2,3057.9,3.44471969]
[1767350164063,3.42758814,3060.0,3058.2,3.60839969]
[1767350164250,3.42758814,3060.0,3058.8,0.00490846]
[1767350164955,3.43075293,3060.0,3058.8,0.00490846]
[1767350166752,0.16675479,3060.0,3058.8,0.00490846]
[1767350166956,4.783,3059.9,3058.8,0.00490846]
[1767350169062,4.784,3059.8,3058.8,0.00490846]
[1767350170557,8.21158814,3059.8,3058.8,0.00490846]
[1767350170955,3.42758814,3059.8,3058.8,0.00490846]
[1767350171161,4.787,3059.7,3058.8,0.00490846]
[1767350171863,4.789,3059.9,3058.9,4.23702403]
[1767350172160,4.789,3059.9,3059.1,0.00490846]
[1767350172362,8.21658814,3059.9,3058.2,3.44471969]
[1767350172564,8.21658814,3059.9,3058.4,0.00490846]
[1767350172959,3.42758814,3059.8,3058.4,0.00490846]
[1767350173661,0.00490846,3059.4,3058.8,0.00490846]
[1767350173863,4.789,3059.3,3058.8,0.00490846]
[1767350174363,4.789,3059.3,3058.4,0.00490846]
[1767350175254,4.789,3059.3,3059.0,0.00490846]
[1767350175460,4.789,3059.3,3058.3,4.20193594]
[1767350175461,4.789,3059.3,3058.5,0.00490846]
[1767350175858,0.00312743,3059.9,3058.6,4.28000887]
[1767350176061,4.789,3059.8,3058.6,7.72472856]
[1767350176266,0.00312743,3059.9,3058.8,0.16365]
[1767350176467,4.79212743,3059.9,3058.8,0.16365]
[1767350176668,4.79212743,3059.9,3058.9,4.25328118]
[1767350176871,0.00490846,3059.7,3058.9,4.25328118]
[1767350177870,4.79312743,3059.9,3058.9,7.69800087]
[1767350178462,4.79312743,3059.9,3058.9,4.25328118]
[1767350178663,4.79312743,3059.9,3058.5,3.44962815]
[1767350179167,4.79312743,3059.9,3058.6,4.15404208]
[1767350179373,0.00312743,3059.9,3058.6,4.15404208]
[1767350179576,1.473,3059.8,3058.6,4.15404208]
[1767350181368,4.79212743,3059.9,3058.6,4.15404208]
[1767350183864,4.79,3059.8,3058.6,4.15404208]
[1767350184065,0.00312743,3059.9,3058.6,4.15404208]
[1767350184271,4.79,3059.8,3058.6,4.15404208]
[1767350184768,4.79,3059.8,3058.5,4.32262054]
[1767350184769,8.21758814,3059.8,3058.5,4.32262054]
[1767350185070,3.42758814,3059.7,3058.5,4.32262054]
[1767350185873,0.00490846,3059.4,3058.8,0.00490846]
[1767350187980,0.00490846,3059.4,3058.1,3.44471969]
[1767350188677,0.00490846,3059.4,3057.8,0.1637]
[1767350188875,0.00490846,3059.4,3057.8,3.5301052]
[1767350189077,0.00490846,3059.4,3058.3,0.00490846]
[1767350190779,3.6260099,3059.4,3058.3,0.00490846]
[1767350191673,4.792,3059.3,3058.3,0.00490846]
[1767350192980,3.6260099,3059.4,3058.3,0.00490846]
[1767350193181,4.794,3059.3,3058.3,0.00490846]
[1767350194080,3.62110144,3059.2,3058.0,3.37131366]
[1767350195088,3.78473144,3059.2,3058.3,0.00490846]
[1767350195281,4.794,3059.3,3057.5,0.00314973]
[1767350195282,3.62110144,3059.0,3057.5,0.00314973]
[1767350195587,3.78474144,3059.0,3057.5,0.00314973]
[1767350195783,3.78474144,3059.0,3057.6,3.37131366]
[1767350196284,3.78474144,3059.0,3058.0,0.00490846]
[1767350196476,3.62110144,3058.8,3058.0,0.00490846]
[1767350196674,4.3683654,3058.8,3057.5,0.00314973]
[1767350196876,3.62110144,3058.7,3057.7,3.37131366]
[1767350197392,3.62110144,3058.7,3057.5,0.00314973]
[1767350197577,3.62110144,3058.7,3057.6,3.37131366]
[1767350197977,3.62110144,3058.7,3057.8,0.00490846]
[1767350200887,3.62110144,3058.7,3057.5,0.00314973]
[1767350201183,3.62110144,3058.7,3057.5,3.37446339]
[1767350201384,3.62110144,3058.7,3057.5,0.00314973]
[1767350201385,3.78476144,3058.7,3057.5,0.00314973]
[1767350201783,3.78476144,3058.7,3057.8,0.00327228]